bitfinex-derivatives/quotes_SOLF0:USTF0_20250909
["timestamp","ask_amount","ask_price","bid_price","bid_amount"]
[1757441302856,7.03312467,214.87,214.73,7.39]
[1757441302857,7.0,214.84,214.73,7.39]
[1757441303461,0.02953028,214.81,214.73,7.39]
[1757441303862,0.02953028,214.81,214.75,7.39]
[1757441335271,0.02953028,214.81,214.78,7.37]
[1757441336069,0.02953028,214.81,214.77,3.94157062]
[1757441336269,0.02953028,214.81,214.78,7.37]
[1757441336568,0.02953028,214.81,214.77,3.94157062]
[1757441336768,0.02953028,214.81,214.78,7.37]
[1757441337167,0.02953028,214.81,214.75,7.37]
[1757441341972,0.02953028,214.81,214.77,3.94157062]
[1757441342265,0.02953028,214.81,214.8,11.31157062]
[1757441342465,7.05,214.91,214.8,9.89385858]
[1757441342770,7.05,214.91,214.84,9.89385858]
[1757441343871,7.05,214.91,214.87,7.37]
[1757441344271,7.05,214.93,214.87,7.37]
[1757441346268,2.52385858,214.92,214.85,0.0353836]
[1757441346571,7.05,214.91,214.85,0.0353836]
[1757441346765,7.05,214.89,214.85,0.0353836]
[1757441346965,2.52385858,214.9,214.85,0.0353836]
[1757441347167,7.05,214.89,214.85,0.0353836]
[1757441347672,2.52385858,214.9,214.85,0.0353836]
[1757441348073,7.05,214.89,214.85,0.0353836]
[1757441348773,2.52385858,214.9,214.85,0.0353836]
[1757441348964,7.05,214.89,214.85,0.0353836]
[1757441349166,2.52385858,214.9,214.85,0.0353836]
[1757441349874,7.05,214.89,214.85,0.0353836]
[1757441350269,2.52385858,214.9,214.85,0.0353836]
[1757441351474,7.05,214.89,214.85,0.0353836]
[1757441351673,2.52385858,214.9,214.85,0.0353836]
[1757441351874,7.05,214.89,214.85,0.0353836]
[1757441352078,2.52385858,214.9,214.85,0.0353836]
[1757441352576,7.05,214.89,214.85,0.0353836]
[1757441352771,2.52385858,214.91,214.85,0.0353836]
[1757441352979,7.05,214.9,214.85,0.0353836]
[1757441353178,2.52385858,214.91,214.85,0.0353836]
[1757441353478,7.05,214.9,214.85,0.0353836]
[1757441353680,7.7,214.9,214.85,0.0353836]
[1757441353877,2.52385858,214.91,214.85,0.0353836]
[1757441354079,10.22385858,214.91,214.85,0.0353836]
[1757441354279,7.7,214.91,214.85,0.0353836]
[1757441355481,7.7,214.91,214.87,7.42]
[1757441355782,7.7,215.03,214.91,7.42]
[1757441355975,7.7,215.03,214.85,0.0353836]
[1757441355976,7.7,215.03,214.96,2.52385858]
[1757441356381,7.7,215.03,214.97,0.03080285]
[1757441360488,7.7,215.06,215.0,2.52385858]
[1757441360981,7.7,215.09,215.02,2.52385858]
[1757441361388,7.7,215.09,215.01,0.02932495]
[1757441362389,2.52385858,215.08,215.01,0.02932495]
[1757441362584,7.7,215.07,215.01,0.02932495]
[1757441365485,7.7,215.07,215.03,7.42]
[1757441365992,7.7,215.1,215.03,7.42]
[1757441371492,7.7,215.1,215.01,2.55318353]
[1757441371789,7.7,215.08,215.01,2.55318353]
[1757441371994,7.7,215.08,215.02,7.42]
[1757441372288,7.7,215.08,215.03,0.0322744]
[1757441372493,7.7,215.09,215.03,0.0322744]
[1757441374088,53.06,215.14,215.03,0.0322744]
[1757441374089,7.7,215.07,215.03,0.0322744]
[1757441374393,2.52385858,215.08,215.03,0.0322744]
[1757441375487,7.7,215.07,215.03,0.0322744]
[1757441375691,2.52385858,215.08,215.03,0.0322744]
[1757441376499,7.7,215.13,215.03,0.0322744]
[1757441376796,7.7,215.08,215.03,0.0322744]
[1757441377194,2.52385858,215.09,215.03,0.0322744]
[1757441377997,7.7,215.08,215.03,0.0322744]
[1757441378193,2.52385858,215.09,215.03,0.0322744]
[1757441378595,7.7,215.08,215.03,0.0322744]
[1757441378989,2.52385858,215.09,215.03,0.0322744]
[1757441379194,7.7,215.08,215.03,0.0322744]
[1757441379497,2.52385858,215.09,215.03,0.0322744]
[1757441379899,7.7,215.08,215.03,0.0322744]
[1757441380294,2.52385858,215.09,215.03,0.0322744]
[1757441380490,7.7,215.08,215.05,7.42]
[1757441380998,2.52385858,215.11,215.04,2.55936524]
[1757441381302,312.84,215.15,215.04,2.55936524]
[1757441381303,7.7,215.17,215.1,2.52385858]
[1757441381898,7.7,215.17,215.11,0.03241537]
[1757441382303,7.7,215.17,215.11,2.55627395]
[1757441383301,7.7,215.17,215.11,0.03241537]
[1757441383500,7.7,215.17,215.11,2.55627395]
[1757441384204,7.7,215.17,215.11,0.03241537]
[1757441391599,7.7,215.17,215.11,7.61241537]
[1757441391805,7.36,215.18,215.12,2.52385858]
[1757441392702,2.52385858,215.21,215.14,2.52385858]
[1757441392906,7.36,215.2,215.14,2.52385858]
[1757441393202,7.36,215.2,215.13,2.52385858]
[1757441393408,7.36,215.2,215.15,0.03505135]
[1757441394203,7.36,215.18,215.15,0.03505135]
[1757441394400,2.52385858,215.19,215.15,0.03505135]
[1757441394604,7.36,215.18,215.15,0.03505135]
[1757441394808,2.52385858,215.19,215.15,0.03505135]
[1757441395008,7.36,215.18,215.15,0.03505135]
[1757441395810,2.52385858,215.19,215.15,0.03505135]
[1757441396009,7.36,215.18,215.15,0.03505135]
[1757441396310,2.52385858,215.19,215.15,0.03505135]
[1757441396904,2.52385858,215.2,215.15,0.03505135]
[1757441397110,7.36,215.19,215.15,0.03505135]
[1757441399612,2.52385858,215.18,215.15,0.03505135]
[1757441399922,7.36,215.17,215.15,0.03505135]
[1757441400125,2.52385858,215.18,215.15,0.03505135]
[1757441400318,7.36,215.17,215.15,0.03505135]
[1757441400723,7.36,215.21,215.15,0.03505135]
[1757441400925,7.36,215.17,215.15,0.03505135]
[1757441401226,2.52385858,215.18,215.15,0.03505135]
[1757441401818,7.36,215.17,215.15,0.03505135]
[1757441402023,2.52385858,215.18,215.15,0.03505135]
[1757441402223,7.36,215.17,215.15,0.03505135]
[1757441402619,114.2,215.22,215.15,0.03505135]
[1757441402926,7.36,215.21,215.15,0.03505135]
[1757441403124,7.36,215.19,215.15,0.03505135]
[1757441403425,114.2,215.21,215.15,0.03505135]
[1757441403623,7.36,215.2,215.15,0.03505135]
[1757441406230,114.2,215.21,215.15,0.03505135]
[1757441407328,7.36,215.2,215.15,0.03505135]
[1757441409530,3.93371776,215.17,214.98,7.58]
[1757441409726,12.56522288,215.16,215.02,7.58]
[1757441409926,7.36,215.14,215.02,7.58]
[1757441410129,7.36,215.14,215.04,3.93371776]
[1757441410327,7.36,215.14,215.05,7.58]
[1757441410931,0.03582357,215.12,215.05,7.58]
[1757441412227,7.36,215.11,215.05,7.58]
[1757441412628,7.36,215.11,215.01,7.58]
[1757441413533,9.17476421,215.12,214.96,7.58]
[1757441413534,12.56522288,215.09,214.96,7.58]
[1757441413733,11.29371776,215.09,214.96,7.58]
[1757441414131,7.15208714,215.05,214.96,7.58]
[1757441414933,0.03208714,215.05,214.99,7.16]
[1757441418535,0.03208714,215.05,215.02,7.16]
[1757441419641,0.03208714,215.05,215.02,7.62]
[1757441419831,0.03208714,215.05,215.03,7.16]
[1757441421241,0.03208714,215.05,215.0,7.16]
[1757441421441,0.03208714,215.05,214.99,3.93371776]
[1757441421641,0.03208714,215.05,215.0,7.16]
[1757441422637,0.03208714,215.05,214.99,3.93371776]
[1757441422837,0.03208714,215.05,215.0,7.16]
[1757441423043,0.03208714,215.05,214.99,3.93371776]
[1757441423242,0.03208714,215.05,215.0,7.16]
[1757441423936,0.03208714,215.05,214.99,3.93371776]
[1757441424733,0.03208714,215.05,215.0,7.16]
[1757441424939,0.03208714,215.05,214.99,3.93371776]
[1757441425140,0.03208714,215.05,214.99,11.09371776]
[1757441425738,0.03208714,215.05,214.99,7.16]
[1757441427643,0.03208714,215.05,214.99,11.09371776]
[1757441427841,0.03208714,215.05,215.0,7.16]
[1757441429249,0.03208714,215.05,215.03,7.16]
[1757441430245,0.03208714,215.05,215.03,7.62]
[1757441431151,0.03208714,215.05,215.04,0.46]
[1757441431850,0.03208714,215.05,215.04,7.62]
[1757441432450,7.12,215.14,215.04,7.62]
[1757441432650,7.12,215.14,215.04,7.16]
[1757441433751,7.12,215.14,215.07,7.19466425]
[1757441437054,5.20522288,215.2,215.07,7.19466425]
[1757441437255,7.12,215.19,215.09,7.16]
[1757441437654,7.12,215.19,215.12,0.03408557]
[1757441442258,7.12,215.16,215.12,0.03408557]
[1757441442558,7.12,215.13,215.12,0.03408557]
[1757441444659,7.12,215.13,215.02,7.24]
[1757441445863,0.03556229,215.1,215.02,7.24]
[1757441446164,7.32,215.09,214.99,11.17371776]
[1757441446557,7.32,215.09,215.0,7.24]
[1757441449158,7.32,215.21,215.09,7.24]
[1757441450364,7.32,215.21,215.13,0.03448566]
[1757441464282,9.83717848,215.21,215.13,2.55166414]
[1757441468782,9.83717848,215.21,215.13,0.03448566]
[1757441468978,2.51717848,215.15,215.13,0.03448566]
[1757441469180,7.32,215.14,215.03,9.75717848]
[1757441469379,7.32,215.11,215.03,9.75717848]
[1757441469980,7.32,215.11,215.03,2.51717848]
[1757441470277,0.03252643,215.09,215.03,2.51717848]
[1757441470482,7.32,215.08,215.03,2.51717848]
[1757441470779,7.35252643,215.09,215.03,2.51717848]
[1757441471482,7.35252643,215.09,215.01,2.51717848]
[1757441473585,7.29,215.07,214.99,2.51717848]
[1757441473786,7.29,215.07,214.97,7.34]
[1757441473987,7.29,215.07,214.99,2.51717848]
[1757441474177,0.0343253,215.04,214.99,2.51717848]
[1757441474487,7.29,215.03,214.99,9.85717848]
[1757441474986,7.29,215.03,215.0,7.34]
[1757441475583,0.0343253,215.04,215.0,7.34]
[1757441475788,7.3243253,215.04,215.0,7.34]
[1757441477885,7.29,215.03,215.0,7.34]
[1757441478784,7.29,215.03,214.99,2.51717848]
[1757441478982,7.29,215.03,214.99,9.85717848]
[1757441479182,7.29,215.03,214.99,7.34]
[1757441479579,7.29,215.03,214.98,2.51717848]
[1757441479781,7.29,215.03,214.99,7.34]
[1757441480180,7.29,215.03,214.98,2.51717848]
[1757441480580,7.29,215.03,214.99,7.34]
[1757441482986,7.29,215.03,214.98,2.51717848]
[1757441483186,7.29,215.03,214.99,7.34]
[1757441483893,7.29,215.03,214.97,2.51717848]
[1757441487289,7.29,215.03,214.98,7.34]
[1757441487596,7.29,215.03,214.97,2.51717848]
[1757441487891,7.29,215.03,214.98,7.34]
[1757441488092,7.29,215.03,214.97,2.51717848]
[1757441488487,7.29,215.03,214.98,7.34]
[1757441488994,7.29,215.03,214.97,9.85717848]
[1757441489893,7.29,215.03,214.97,7.34]
[1757441490087,7.29,215.03,214.98,2.51717848]
[1757441490288,7.29,215.03,214.99,7.34]
[1757441490486,0.0343253,215.04,214.99,7.34]
[1757441490889,7.29,215.03,214.99,7.34]
[1757441492802,0.0343253,215.04,214.99,7.34]
[1757441493000,7.29,215.03,214.98,2.51717848]
[1757441493197,7.29,215.03,214.99,7.34]
[1757441493498,7.29,215.01,214.94,7.34]
[1757441493898,7.29,215.01,214.97,2.51717848]
[1757441494101,0.03276238,215.0,214.97,2.51717848]
[1757441494495,0.03276238,215.0,214.98,7.34]
[1757441495198,0.03276238,215.0,214.97,2.51717848]
[1757441495395,0.03276238,215.0,214.98,7.34]
[1757441495603,0.03276238,215.0,214.99,9.85717848]
[1757441499001,0.03276238,215.0,214.99,7.34]
[1757441499308,0.03276238,215.0,214.97,7.34]
[1757441499501,0.03276238,215.0,214.96,2.51717848]
[1757441499708,0.03276238,215.0,214.98,9.85717848]
[1757441499898,0.03276238,215.0,214.99,7.34]
[1757441502705,0.03276238,215.0,214.99,9.85717848]
[1757441505904,0.03276238,215.0,214.92,13.62]
[1757441505905,0.03276238,215.0,214.93,7.47]
[1757441506210,0.03276238,215.0,214.97,2.51717848]
[1757441507206,0.03276238,215.0,214.98,7.47]
[1757441507415,0.03276238,215.0,214.97,2.51717848]
[1757441507910,0.03276238,215.0,214.98,7.47]
[1757441508112,0.03276238,215.0,214.97,2.51717848]
[1757441508306,0.03276238,215.0,214.98,7.47]
[1757441508612,0.03276238,215.0,214.99,9.98717848]
[1757441508913,7.48,215.1,215.0,7.47]
[1757441509110,7.48,215.1,215.03,2.51717848]
[1757441509409,7.48,215.12,215.05,2.51717848]
[1757441510401,7.48,215.12,215.03,7.47]
[1757441510604,7.48,215.12,215.06,2.54727879]
[1757441511211,7.48,215.12,215.06,0.03010031]
[1757441511411,7.48,215.12,215.06,2.54727879]
[1757441513614,7.48,215.15,215.08,2.51717848]
[1757441513914,312.58,215.18,215.13,7.47]
[1757441514112,7.48,215.17,215.12,2.51717848]
[1757441514303,7.48,215.18,215.12,9.98717848]
[1757441514508,7.48,215.18,215.13,2.51717848]
[1757441514808,7.48,215.16,215.12,0.03114352]
[1757441515314,7.48,215.14,215.12,0.03114352]
[1757441517017,2.51717848,215.13,215.12,0.03114352]
[1757441517311,9.99717848,215.13,215.12,0.03114352]
[1757441520719,9.99717848,215.13,215.12,0.03114352]
[1757441521721,10.45717848,215.13,214.98,7.47]
[1757441521914,10.45717848,215.13,215.0,2.51717848]
[1757441521915,7.48,215.08,215.0,2.51717848]
[1757441522114,7.48,215.08,215.0,9.98717848]
[1757441523022,0.03119826,215.06,215.0,9.98717848]
[1757441524322,0.03119826,215.06,215.0,7.47]
[1757441527023,7.48,215.05,215.02,7.47]
[1757441527821,0.03119826,215.06,215.02,7.47]
[1757441528823,7.51119826,215.06,215.02,7.47]
[1757441531225,0.03119826,215.06,215.02,7.47]
[1757441531425,0.03119826,215.06,215.01,0.03234892]
[1757441531620,7.48,215.05,215.01,0.03234892]
[1757441531822,0.03119826,215.06,215.01,0.03234892]
[1757441533021,0.03119826,215.06,215.02,7.47]
[1757441533225,0.03119826,215.06,215.01,0.03234892]
[1757441533420,0.03119826,215.06,215.02,7.47]
[1757441533624,0.03119826,215.06,215.01,0.03234892]
[1757441534321,0.03119826,215.06,215.02,7.68]
[1757441534822,0.03119826,215.06,215.03,7.68]
[1757441535018,0.03119826,215.06,215.05,11.61789129]
[1757441536919,0.03119826,215.06,215.05,7.68]
[1757441538628,0.03119826,215.06,215.05,11.61789129]
[1757441539030,7.56,215.15,215.05,4.39789129]
[1757441539229,7.56,215.15,215.06,7.68]
[1757441540329,7.56,215.15,215.08,0.03182951]
[1757441545130,7.56,215.13,215.08,0.03182951]
[1757441545332,3.93789129,215.12,215.08,0.03182951]
[1757441545827,7.56,215.11,215.08,0.03182951]
[1757441546229,7.56,215.1,215.08,0.03182951]
[1757441546630,114.24,215.11,215.08,0.03182951]
[1757441547434,7.56,215.14,215.08,0.03182951]
[1757441547634,114.24,215.13,215.08,0.03182951]
[1757441547835,7.56,215.12,215.08,0.03182951]
[1757441548034,114.24,215.13,215.08,0.03182951]
[1757441548438,7.56,215.12,215.08,0.03182951]
[1757441548938,11.49789129,215.12,215.08,0.03182951]
[1757441551240,114.24,215.11,215.08,0.03182951]
[1757441552333,7.56,215.1,215.08,0.03182951]
[1757441553344,114.24,215.11,215.08,0.03182951]
[1757441553538,7.56,215.1,215.08,0.03182951]
[1757441554044,8.02,215.1,215.08,0.03182951]
[1757441554843,7.56,215.09,215.08,0.03182951]
[1757441555746,121.8,215.09,215.08,0.03182951]
[1757441556847,122.26,215.09,215.08,0.03182951]
[1757441557550,126.19789129,215.09,215.08,0.03182951]
[1757441558243,131.40311417,215.09,214.93,7.68]
[1757441558443,7.56,214.99,214.85,3.90404697]
[1757441558752,114.36,214.98,214.87,7.68]
[1757441559451,0.03135525,214.95,214.87,7.68]
[1757441559749,114.36,214.94,214.87,7.68]
[1757441561151,7.59135525,214.95,214.87,7.68]
[1757441561348,0.03135525,214.95,214.91,7.68]
[1757441561950,0.03135525,214.95,214.89,7.68]
[1757441563553,7.56,214.94,214.85,7.68]
[1757441582061,0.03135525,214.95,214.87,7.07]
[1757441582256,0.03135525,214.95,214.9,7.07]
[1757441582461,7.16,214.98,214.9,7.07]
[1757441582764,0.03305562,214.95,214.89,3.93789129]
[1757441582965,0.03305562,214.95,214.9,7.07]
[1757441583164,0.03305562,214.95,214.89,7.07]
[1757441586468,0.03305562,214.95,214.92,7.07]
[1757441586656,7.16,214.94,214.83,7.07]
[1757441586857,7.16,214.94,214.88,9.59228797]
[1757441587667,7.16,214.92,214.85,2.52228797]
[1757441587863,2.52228797,214.91,214.83,9.59228797]
[1757441588061,7.16,214.9,214.83,9.59228797]
[1757441588261,2.55205454,214.89,214.83,7.07]
[1757441589162,7.16,214.88,214.79,9.59228797]
[1757441589762,2.52228797,214.87,214.79,9.59228797]
[1757441589957,0.032279,214.86,214.79,9.59228797]
[1757441590962,7.16,214.85,214.79,9.59228797]
[1757441591365,9.68228797,214.85,214.79,7.07]
[1757441593970,0.032279,214.86,214.8,2.52228797]
[1757441594769,0.032279,214.86,214.8,9.99228797]
[1757441595665,0.032279,214.86,214.83,7.47]
[1757441596068,0.032279,214.86,214.85,7.47]
[1757441599068,7.52,214.97,214.85,7.93]
[1757441599271,7.52,215.01,214.93,2.52228797]
[1757441599484,7.52,215.01,214.91,7.47]
[1757441599773,10.04228797,215.01,214.91,7.47]
[1757441599975,7.52,214.98,214.91,9.99228797]
[1757441600171,16.49154857,215.05,214.94,0.03281433]
[1757441600376,2.52228797,215.02,214.94,0.03281433]
[1757441600574,2.52228797,215.02,214.95,2.52228797]
[1757441600775,7.52,215.01,214.95,2.52228797]
[1757441600973,7.52,215.01,214.94,0.03281433]
[1757441604978,7.52,215.01,214.95,2.52228797]
[1757441605171,7.52,215.06,214.95,7.47]
[1757441605377,10.04228797,215.06,214.98,2.52228797]
[1757441605679,7.52,215.06,215.0,0.03388783]
[1757441605875,7.52,215.06,215.0,2.5561758]
[1757441606075,312.82,215.09,215.02,9.99228797]
[1757441606671,312.82,215.09,215.04,2.52228797]
[1757441606869,312.82,215.09,215.05,7.47]
[1757441607076,7.52,215.11,215.06,2.52228797]
[1757441607275,7.52,215.11,215.06,9.99228797]
[1757441607483,34.40228797,215.15,215.08,2.52228797]
[1757441607484,39.4,215.15,215.08,2.52228797]
[1757441608080,39.4,215.15,215.09,0.03526652]
[1757441608681,41.92228797,215.15,215.09,0.03526652]
[1757441608877,2.52228797,215.13,215.09,0.03526652]
[1757441609082,7.52,215.12,215.09,0.03526652]
[1757441609283,2.52228797,215.13,215.09,0.03526652]
[1757441609782,7.52,215.12,215.09,0.03526652]
[1757441610379,2.52228797,215.13,215.09,0.03526652]
[1757441610782,7.52,215.12,215.09,0.03526652]
[1757441611476,2.52228797,215.15,215.09,0.03526652]
[1757441611686,10.04228797,215.15,215.09,0.03526652]
[1757441613984,7.52,215.15,215.09,0.03526652]
[1757441614487,2.52228797,215.2,215.12,2.52228797]
[1757441614789,7.52,215.21,215.14,2.52228797]
[1757441615181,7.52,215.21,215.14,2.55619675]
[1757441617083,10.04228797,215.21,215.14,2.55619675]
[1757441617388,10.04228797,215.21,215.14,0.03390878]
[1757441618084,2.52228797,215.19,215.14,0.03390878]
[1757441618291,7.52,215.18,215.14,0.03390878]
[1757441618491,2.52228797,215.19,215.14,0.03390878]
[1757441618785,7.52,215.18,215.14,0.03390878]
[1757441619085,2.52228797,215.19,215.14,0.03390878]
[1757441619288,7.52,215.18,215.14,0.03390878]
[1757441619489,2.52228797,215.19,215.14,0.03390878]
[1757441620084,7.52,215.18,215.14,0.03390878]
[1757441620488,2.52228797,215.19,215.14,0.03390878]
[1757441620691,7.52,215.18,215.14,0.03390878]
[1757441620887,117.52228797,215.19,215.14,0.03390878]
[1757441621089,7.52,215.18,215.14,0.03390878]
[1757441621589,117.52228797,215.19,215.14,0.03390878]
[1757441621789,7.52,215.18,215.14,0.03390878]
[1757441622193,117.52228797,215.19,215.14,0.03390878]
[1757441622488,7.52,215.18,215.14,0.03390878]
[1757441622988,117.52228797,215.19,215.14,0.03390878]
[1757441623395,7.52,215.16,215.14,0.03390878]
[1757441623690,2.52228797,215.15,215.14,0.03390878]
[1757441623888,9.55228797,215.15,215.14,0.03390878]
[1757441624794,7.03,215.15,215.14,0.03390878]
[1757441626891,9.55228797,215.15,215.14,0.03390878]
[1757441633301,124.39228797,215.15,215.14,0.03390878]
[1757441634503,121.87,215.15,215.14,0.03390878]
[1757441634692,124.39228797,215.15,215.14,0.03390878]
[1757441636802,124.29228797,215.15,215.14,0.03390878]
[1757441637814,313.5692741,215.22,215.14,0.03390878]
[1757441637815,2.52228797,215.16,215.14,7.31390878]
[1757441638011,9.55228797,215.18,215.14,7.31390878]
[1757441638205,2.52228797,215.16,215.14,0.03390878]
[1757441638410,121.79,215.15,215.14,0.03390878]
[1757441640106,121.79,215.15,215.06,7.28]
[1757441640307,9.55228797,215.1,215.06,7.28]
[1757441640508,124.39228797,215.1,215.06,7.28]
[1757441641115,7.03,215.09,215.06,7.28]
[1757441642208,2.52228797,215.08,215.01,7.28]
[1757441642414,114.8,215.07,215.01,7.28]
[1757441642806,0.03107648,215.06,215.0,2.52228797]
[1757441643010,0.03107648,215.06,215.01,7.28]
[1757441643208,0.03107648,215.06,215.0,9.80228797]
[1757441643414,7.06107648,215.06,215.0,9.80228797]
[1757441644714,9.58336445,215.06,215.0,7.28]
[1757441644918,7.03,215.03,214.96,2.52228797]
[1757441645125,121.85,215.03,214.97,7.28]
[1757441645417,0.03031238,215.02,214.97,7.28]
[1757441645818,0.03031238,215.02,214.96,2.52228797]
[1757441646421,0.03031238,215.02,214.95,7.28]
[1757441652426,7.06031238,215.02,214.95,7.28]
[1757441654829,0.03031238,215.02,214.95,7.28]
[1757441655530,0.03031238,215.02,214.96,3.93919931]
[1757441655829,0.03031238,215.02,214.97,7.34]
[1757441658230,0.03031238,215.02,214.99,3.93919931]
[1757441658424,0.03031238,215.02,215.0,7.34]
[1757441658622,0.03031238,215.02,214.99,3.93919931]
[1757441658826,0.03031238,215.02,215.0,7.34]
[1757441659328,0.03031238,215.02,214.99,3.93919931]
[1757441659629,0.03031238,215.02,215.0,7.34]
[1757441659818,0.03031238,215.02,214.99,3.93919931]
[1757441660223,0.03031238,215.02,215.0,7.34]
[1757441660626,0.03031238,215.02,214.99,3.93919931]
[1757441661621,0.03031238,215.02,214.95,3.93919931]
[1757441661928,7.54,215.02,214.95,3.93919931]
[1757441662130,0.03203928,215.01,214.95,3.93919931]
[1757441664223,0.03203928,215.01,214.96,7.34]
[1757441664829,0.03203928,215.01,214.95,3.93919931]
[1757441665228,0.03203928,215.01,214.96,7.34]
[1757441665429,0.03203928,215.01,214.95,3.93919931]
[1757441665828,0.03203928,215.01,214.96,7.34]
[1757441666228,0.03203928,215.01,214.95,3.93919931]
[1757441666430,0.03203928,215.01,214.98,3.93919931]
[1757441666831,7.54,215.07,214.99,7.34]
[1757441667032,0.03337016,215.02,214.98,3.93919931]
[1757441667232,0.03337016,215.02,214.99,7.34]
[1757441667625,0.03337016,215.02,215.01,3.93919931]
[1757441667939,7.54,215.11,215.02,7.34]
[1757441669230,7.54,215.11,215.04,0.03109831]
[1757441677333,16.69074788,215.11,215.04,0.03109831]
[1757441677843,11.47919931,215.11,215.04,0.03109831]
[1757441678235,7.54,215.09,215.04,0.03109831]
[1757441678440,89.66,215.1,215.04,0.03109831]
[1757441678943,7.54,215.1,215.04,0.03109831]
[1757441681842,114.52,215.09,215.04,0.03109831]
[1757441683249,122.06,215.1,215.04,0.03109831]
[1757441683444,122.02,215.1,215.04,0.03109831]
[1757441683750,7.54,215.1,215.04,0.03109831]
[1757441683944,122.02,215.1,215.04,0.03109831]
[1757441684155,6.98,215.13,215.05,7.22]
[1757441685350,12.19154857,215.13,215.04,0.03109831]
[1757441685549,6.98,215.13,215.04,0.03109831]
[1757441686355,12.19154857,215.13,215.04,0.03109831]
[1757441687954,6.98,215.13,215.04,0.03109831]
[1757441688155,6.98,215.1,215.04,0.03109831]
[1757441688556,12.19154857,215.1,215.04,0.03109831]
[1757441691359,6.98,215.08,215.04,0.03109831]
[1757441691954,114.46,215.09,215.04,0.03109831]
[1757441692150,6.98,215.08,215.04,0.03109831]
[1757441692557,114.46,215.07,215.04,0.03109831]
[1757441692857,6.98,215.06,215.04,0.03109831]
[1757441693053,114.46,215.07,215.04,0.03109831]
[1757441693453,6.98,215.06,215.04,0.03109831]
[1757441693650,114.46,215.07,215.04,0.03109831]
[1757441694051,6.98,215.06,215.04,0.03109831]
[1757441694251,114.46,215.07,215.04,0.03109831]
[1757441694659,6.98,215.06,215.04,0.03109831]
[1757441694860,114.46,215.07,215.04,0.03109831]
[1757441695259,6.98,215.06,215.04,0.03109831]
[1757441695462,114.46,215.07,215.04,0.03109831]
[1757441696060,6.98,215.1,215.04,0.03109831]
[1757441696361,114.46,215.09,215.04,0.03109831]
[1757441696555,5.21154857,215.11,215.04,0.03109831]
[1757441696762,121.44,215.1,215.04,0.03109831]
[1757441698269,6.98,215.1,215.04,0.03109831]
[1757441698462,6.98,215.08,215.04,0.03109831]
[1757441698765,6.98,215.11,215.04,0.03109831]
[1757441698965,114.46,215.1,215.04,0.03109831]
[1757441699166,6.98,215.09,215.04,0.03109831]
[1757441699565,114.46,215.1,215.04,0.03109831]
[1757441699864,6.98,215.09,215.04,0.03109831]
[1757441700068,114.46,215.1,215.04,0.03109831]
[1757441700276,6.98,215.09,215.04,0.03109831]
[1757441703078,114.46,215.08,215.04,0.03109831]
[1757441703275,6.98,215.07,215.04,0.03109831]
[1757441703477,6.98,215.06,215.04,0.03109831]
[1757441704874,121.44,215.06,215.04,0.03109831]
[1757441705580,114.46,215.07,215.04,0.03109831]
[1757441705780,121.44,215.07,215.04,0.03109831]
[1757441705977,6.98,215.06,215.04,0.03109831]
[1757441707579,6.98,215.05,215.04,0.03109831]
[1757441709674,6.98,215.08,215.04,0.03109831]
[1757441709876,48.56,215.07,215.04,7.25109831]
[1757441710084,80.1,215.07,215.04,9.77100943]
[1757441710481,80.1,215.07,215.04,2.55100943]
[1757441710777,6.98,215.06,215.04,2.55100943]
[1757441713779,37.7,215.08,215.04,2.55100943]
[1757441713983,7.05,215.08,215.04,2.55100943]
[1757441714384,50.84,215.09,215.04,2.55100943]
[1757441715090,7.05,215.08,215.04,2.55100943]
[1757441715784,50.84,215.09,215.04,2.55100943]
[1757441716087,7.05,215.11,215.04,2.55100943]
[1757441716281,100.42,215.1,215.04,2.55100943]